fUST/lending_fUST_20260417
["ID","MTS","AMOUNT","RATE_DAILY","PERIOD"]
[420657720,1776437443200,-931.2,8.493e-05,2]
[420657721,1776437443209,-1910.09,8.493e-05,2]
[420657722,1776437443219,-781.85,8.493e-05,2]
[420657723,1776437443228,-2313.23,8.493e-05,2]
[420657724,1776437443237,-2748.1,8.493e-05,2]
[420657725,1776437443247,-745.48,8.493e-05,2]
[420657726,1776437443256,-500.0,8.493e-05,2]
[420657727,1776437443267,-4218.51,8.493e-05,2]
[420657728,1776437443276,-509.67,8.493e-05,2]
[420657729,1776437443285,-500.0,8.493e-05,2]
[420657730,1776437443294,-4061.92,8.493e-05,2]
[420657731,1776437443447,-2381.15,8.493e-05,2]
[420657732,1776437443457,-691.8,8.493e-05,2]
[420657733,1776437443466,-500.0,8.493e-05,2]
[420657734,1776437443476,-500.0,8.493e-05,2]
[420657735,1776437443486,-500.0,8.493e-05,2]
[420657736,1776437443495,-675.04,8.493e-05,2]
[420657737,1776437443504,-565.15,8.493e-05,2]
[420657738,1776437443513,-500.0,8.493e-05,2]
[420657739,1776437443522,-7701.99,8.493e-05,2]
[420657740,1776437443532,-500.0,8.493e-05,2]
[420657741,1776437443541,-1301.09,8.493e-05,2]
[420657742,1776437443551,-500.0,8.493e-05,2]
[420657743,1776437443561,-815.78,8.493e-05,2]
[420657744,1776437443571,-500.0,8.493e-05,2]
[420657745,1776437443581,-4306.99,8.493e-05,2]
[420657746,1776437443591,-500.0,8.493e-05,2]
[420657747,1776437443602,-500.0,8.493e-05,2]
[420657748,1776437443614,-500.0,8.493e-05,2]
[420657749,1776437443623,-25740.16,8.493e-05,2]
[420657750,1776437443632,-500.0,8.493e-05,2]
[420657751,1776437443642,-500.0,8.493e-05,2]
[420657752,1776437443653,-1070.79,8.493e-05,2]
[420657753,1776437443663,-1464.13,8.493e-05,2]
[420657754,1776437443673,-500.0,8.493e-05,2]
[420657755,1776437443683,-5547.26,8.493e-05,2]
[420657756,1776437443692,-1329.08,8.493e-05,2]
[420657757,1776437443702,-3006.38,8.493e-05,2]
[420657758,1776437443713,-500.0,8.493e-05,2]
[420657759,1776437443722,-3228.24,8.493e-05,2]
[420657760,1776437443732,-500.0,8.493e-05,2]
[420657761,1776437443741,-13016.44,8.493e-05,2]
[420657762,1776437443751,-500.0,8.493e-05,2]
[420657763,1776437443760,-2167.21,8.493e-05,2]
[420657764,1776437443771,-2673.8,8.493e-05,2]
[420657765,1776437443781,-500.0,8.493e-05,2]
[420657766,1776437443790,-500.0,8.493e-05,2]
[420657767,1776437443801,-5957.22,8.493e-05,2]
[420657768,1776437443810,-753.9,8.493e-05,2]
[420657769,1776437443820,-1115.96,8.493e-05,2]
[420657770,1776437443829,-4742.33,8.493e-05,2]
[420657771,1776437443839,-7327.37,8.493e-05,2]
[420657772,1776437443849,-560.74,8.493e-05,2]
[420657773,1776437443858,-500.0,8.493e-05,2]
[420657774,1776437443868,-500.0,8.493e-05,2]
[420657775,1776437443878,-1500.0,8.578e-05,2]
[420657776,1776437443888,-1500.0,8.578e-05,2]
[420657777,1776437443898,-1500.0,8.578e-05,2]
[420657778,1776437443908,-1131.20257707,8.578e-05,2]
[420657779,1776437443918,-1500.0,8.578e-05,2]
[420657780,1776437443927,-1500.0,8.578e-05,2]
[420657781,1776437443936,-174.61919141,8.596e-05,2]
[420657782,1776437443946,-478.75725327,8.596e-05,2]
[420657783,1776437443957,-151.0,8.596e-05,2]
[420657784,1776437443967,-578.20924308,8.596e-05,2]
[420657785,1776437443979,-503.06663606,8.609e-05,2]
[420657786,1776437443988,-643.6503125,8.609e-05,2]
[420657787,1776437443998,-1000.0,8.609e-05,2]
[420657788,1776437444009,-1000.0,8.609e-05,2]
[420657789,1776437444019,-1000.0,8.609e-05,2]
[420657790,1776437444029,-849.58365933,8.609e-05,2]
[420657791,1776437444038,-1000.0,8.609e-05,2]
[420657792,1776437444047,-500.0,8.767e-05,2]
[420657793,1776437444056,-500.0,8.767e-05,2]
[420657794,1776437444066,-500.0,8.767e-05,2]
[420657795,1776437444076,-500.0,8.767e-05,2]
[420657796,1776437444085,-1657.65,8.767e-05,2]
[420657797,1776437444095,-500.0,8.767e-05,2]
[420657798,1776437444105,-500.0,8.767e-05,2]
[420657799,1776437444115,-500.0,8.767e-05,2]
[420657800,1776437444125,-500.0,8.767e-05,2]
[420657801,1776437444134,-787.39,8.767e-05,2]
[420657802,1776437444143,-500.0,8.767e-05,2]
[420657803,1776437444156,-1390.2324,8.767e-05,2]
[420657804,1776437444165,-500.0,8.767e-05,2]
[420657805,1776437444175,-568.58,8.767e-05,2]
[420657806,1776437444186,-500.0,8.767e-05,2]
[420657807,1776437444196,-962.76,8.767e-05,2]
[420657808,1776437444205,-500.0,8.767e-05,2]
[420657809,1776437444215,-583.01638937,8.767e-05,2]
[420657810,1776437444225,-2465.1,8.767e-05,2]
[420657811,1776437444234,-500.0,8.767e-05,2]
[420657812,1776437444243,-500.0,8.767e-05,2]
[420657813,1776437444253,-588.64,8.767e-05,2]
[420657814,1776437444262,-722.44,8.767e-05,2]
[420657815,1776437444272,-500.0,8.767e-05,2]
[420657816,1776437444282,-500.0,8.767e-05,2]
[420657817,1776437444291,-693.06,8.767e-05,2]
[420657818,1776437444301,-500.0,8.767e-05,2]
[420657819,1776437444310,-1640.61,8.767e-05,2]
[420657820,1776437444320,-547.37,8.767e-05,2]
[420657821,1776437444329,-500.0,8.767e-05,2]
[420657822,1776437444338,-1747.68,8.767e-05,2]
[420657823,1776437444347,-500.0,8.767e-05,2]
[420657824,1776437444357,-1438.78,8.767e-05,2]
[420657825,1776437444366,-502.7,8.767e-05,2]
[420657826,1776437444375,-500.0,8.767e-05,2]
[420657827,1776437444385,-500.0,8.767e-05,2]
[420657828,1776437444394,-500.0,8.767e-05,2]
[420657829,1776437444403,-537.22,8.767e-05,2]
[420657830,1776437444412,-2990.34,8.767e-05,2]
[420657831,1776437444422,-3754.73,8.767e-05,2]
[420657832,1776437444432,-475.92980304,8.767e-05,2]
[420657833,1776437444441,-593.38,8.767e-05,2]
[420657834,1776437444450,-726.8,8.767e-05,2]
[420657835,1776437444459,-538.06,8.767e-05,2]
[420657836,1776437444468,-566.85,8.767e-05,2]
[420657837,1776437444478,-500.0,8.767e-05,2]
[420657838,1776437444487,-4939.8,8.767e-05,2]
[420657839,1776437444497,-3462.88,8.767e-05,2]
[420657840,1776437444506,-1446.18,8.767e-05,2]
[420657841,1776437444516,-713.44,8.767e-05,2]
[420657842,1776437444525,-4528.66,8.767e-05,2]
[420657843,1776437444536,-723.31,8.767e-05,2]
[420657844,1776437444545,-500.0,8.767e-05,2]
[420657845,1776437444554,-2613.51,8.767e-05,2]
[420657846,1776437444563,-500.0,8.767e-05,2]
[420657847,1776437444572,-500.0,8.767e-05,2]
[420657848,1776437444582,-500.0,8.767e-05,2]
[420657849,1776437444591,-3404.94,8.767e-05,2]
[420657850,1776437444600,-7444.33,8.767e-05,2]
[420657851,1776437444609,-218.11415551,8.767e-05,2]
[420657852,1776437444618,-628.83,8.767e-05,2]
[420657853,1776437444627,-1688.16,8.767e-05,2]
[420657854,1776437444637,-800.75,8.767e-05,2]
[420657855,1776437444646,-2658.5,8.767e-05,2]
[420657856,1776437444655,-500.0,8.767e-05,2]
[420657857,1776437444664,-500.0,8.767e-05,2]
[420657858,1776437444674,-931.2,8.767e-05,2]
[420657859,1776437444683,-1910.09,8.767e-05,2]
[420657860,1776437444692,-781.85,8.767e-05,2]
[420657861,1776437444701,-2313.23,8.767e-05,2]
[420657862,1776437444711,-2748.1,8.767e-05,2]
[420657863,1776437444720,-745.48,8.767e-05,2]
[420657864,1776437444729,-500.0,8.767e-05,2]
[420657865,1776437444738,-4218.51,8.767e-05,2]
[420657866,1776437444747,-509.67,8.767e-05,2]
[420657867,1776437444757,-500.0,8.767e-05,2]
[420657868,1776437444766,-4061.92,8.767e-05,2]
[420657869,1776437444776,-2381.15,8.767e-05,2]
[420657870,1776437444785,-691.8,8.767e-05,2]
[420657871,1776437444795,-164.14517713,8.767e-05,2]
[420657872,1776437444805,-500.0,8.767e-05,2]
[420657873,1776437444814,-500.0,8.767e-05,2]
[420657874,1776437444823,-675.04,8.767e-05,2]
[420657875,1776437444832,-565.15,8.767e-05,2]
[420657876,1776437444842,-500.0,8.767e-05,2]
[420657877,1776437444850,-7701.99,8.767e-05,2]
[420657878,1776437444860,-500.0,8.767e-05,2]
[420657879,1776437444869,-1301.09,8.767e-05,2]
[420657880,1776437444878,-500.0,8.767e-05,2]
[420657881,1776437444887,-815.78,8.767e-05,2]
[420657882,1776437444896,-500.0,8.767e-05,2]
[420657883,1776437444906,-4306.99,8.767e-05,2]
[420657884,1776437444915,-500.0,8.767e-05,2]
[420657885,1776437444926,-500.0,8.767e-05,2]
[420657886,1776437444936,-500.0,8.767e-05,2]
[420657887,1776437444946,-25740.16,8.767e-05,2]
[420657888,1776437444955,-500.0,8.767e-05,2]
[420657889,1776437444965,-500.0,8.767e-05,2]
[420657891,1776437444975,-1070.79,8.767e-05,2]
[420657893,1776437444984,-1464.13,8.767e-05,2]
[420657894,1776437444994,-500.0,8.767e-05,2]
[420657896,1776437445003,-5547.26,8.767e-05,2]
[420657898,1776437445012,-1329.08,8.767e-05,2]
[420657900,1776437445022,-3006.38,8.767e-05,2]
[420657902,1776437445032,-500.0,8.767e-05,2]
[420657904,1776437445041,-3228.24,8.767e-05,2]
[420657906,1776437445051,-500.0,8.767e-05,2]
[420657908,1776437445060,-13016.44,8.767e-05,2]
[420657910,1776437445069,-500.0,8.767e-05,2]
[420657912,1776437445079,-2167.21,8.767e-05,2]
[420657915,1776437445088,-2673.8,8.767e-05,2]
[420657917,1776437445098,-500.0,8.767e-05,2]
[420657920,1776437445107,-500.0,8.767e-05,2]
[420657922,1776437445117,-5957.22,8.767e-05,2]
[420657925,1776437445126,-753.9,8.767e-05,2]
[420657928,1776437445136,-1115.96,8.767e-05,2]
[420657931,1776437445145,-4742.33,8.767e-05,2]
[420657933,1776437445155,-7327.37,8.767e-05,2]
[420657935,1776437445164,-560.74,8.767e-05,2]
[420657936,1776437445175,-500.0,8.767e-05,2]
[420657937,1776437445185,-500.0,8.767e-05,2]
[420657938,1776437445195,-203.43834939,8.795e-05,2]
[420657939,1776437445206,-162.43922893,8.8e-05,2]
[420657940,1776437445215,-453.29496767,8.8e-05,2]
[420657941,1776437445225,-361.74483053,8.847e-05,2]
[420657942,1776437445234,-192796.214409,8.852e-05,2]
[420657943,1776437445244,-103941.29052,8.852e-05,2]
[420657944,1776437445254,-1976.37641,8.852e-05,2]
[420657945,1776437445263,-168.3888056,8.869e-05,2]
[420657947,1776437445273,-203.43834939,8.904e-05,2]
[420657948,1776437445282,-2398.4119403,8.907e-05,2]
[420657949,1776437445291,-1086.65297465,8.968e-05,2]
[420657950,1776437445301,-500.0,8.973e-05,2]
[420657951,1776437445311,-500.0,8.973e-05,2]
[420657952,1776437445320,-387737.78082237,9e-05,2]
[420657953,1776437445330,-1993.69784352,9e-05,2]
[420657954,1776437445339,-166.0,9e-05,2]
[420657955,1776437445348,-155.0,9e-05,2]
[420657956,1776437445358,-648.0,9e-05,2]
[420657958,1776437445367,-166.0,9e-05,2]
[420657959,1776437445376,-648.0,9e-05,2]
[420657960,1776437445386,-166.0,9e-05,2]
[420657961,1776437445395,-161.86712527,9e-05,2]
[420657962,1776437445404,-272.61022012,9e-05,2]
[420657963,1776437445413,-6644.68717603,9e-05,2]
[420657964,1776437445424,-5000.0,9e-05,2]
[420657965,1776437445433,-5000.0,9e-05,2]
[420657967,1776437445443,-5000.0,9e-05,2]
[420657968,1776437445452,-5000.0,9e-05,2]
[420657969,1776437445461,-1432.0640224,9.014e-05,2]
[420657970,1776437445471,-402.69448623,9.024e-05,2]
[420657971,1776437445480,-38000.0,9.032e-05,2]
[420657972,1776437445490,-38000.0,9.032e-05,2]
[420657973,1776437445499,-38000.0,9.032e-05,2]
[420657974,1776437445508,-38000.0,9.032e-05,2]
[420657975,1776437445518,-38000.0,9.032e-05,2]
[420657976,1776437445528,-155.0,9.04e-05,2]
[420657977,1776437445537,-38000.0,9.041e-05,2]
[420657978,1776437445547,-38000.0,9.041e-05,2]
[420657979,1776437445556,-38000.0,9.041e-05,2]
[420657980,1776437445566,-38000.0,9.041e-05,2]
[420657981,1776437445575,-500.0,9.041e-05,2]
[420657982,1776437445584,-500.0,9.041e-05,2]
[420657983,1776437445594,-500.0,9.041e-05,2]
[420657984,1776437445603,-500.0,9.041e-05,2]
[420657985,1776437445613,-1657.65,9.041e-05,2]
[420657986,1776437445623,-500.0,9.041e-05,2]
[420657987,1776437445633,-500.0,9.041e-05,2]
[420657988,1776437445643,-500.0,9.041e-05,2]
[420657989,1776437445652,-500.0,9.041e-05,2]
[420657990,1776437445662,-787.39,9.041e-05,2]
[420657991,1776437445672,-500.0,9.041e-05,2]
[420657992,1776437445682,-1390.2324,9.041e-05,2]
[420657993,1776437445691,-38000.0,9.041e-05,2]
[420657994,1776437445701,-500.0,9.041e-05,2]
[420657995,1776437445711,-568.58,9.041e-05,2]
[420657996,1776437445720,-500.0,9.041e-05,2]
[420657997,1776437445730,-962.76,9.041e-05,2]
[420657998,1776437445739,-500.0,9.041e-05,2]
[420658000,1776437445749,-2465.1,9.041e-05,2]
[420658001,1776437445758,-500.0,9.041e-05,2]
[420658002,1776437445769,-500.0,9.041e-05,2]
[420658003,1776437445778,-588.64,9.041e-05,2]
[420658004,1776437445788,-722.44,9.041e-05,2]
[420658005,1776437445797,-500.0,9.041e-05,2]
[420658006,1776437445807,-500.0,9.041e-05,2]
[420658007,1776437445817,-693.06,9.041e-05,2]
[420658008,1776437445826,-500.0,9.041e-05,2]
[420658009,1776437445835,-1640.61,9.041e-05,2]
[420658010,1776437445844,-547.37,9.041e-05,2]
[420658011,1776437445854,-500.0,9.041e-05,2]
[420658012,1776437445863,-1747.68,9.041e-05,2]
[420658013,1776437445873,-500.0,9.041e-05,2]
[420658014,1776437445883,-1438.78,9.041e-05,2]
[420658015,1776437445894,-502.7,9.041e-05,2]
[420658016,1776437445904,-500.0,9.041e-05,2]
[420658017,1776437445914,-500.0,9.041e-05,2]
[420658018,1776437445924,-500.0,9.041e-05,2]
[420658019,1776437445934,-537.22,9.041e-05,2]
[420658020,1776437445943,-2990.34,9.041e-05,2]
[420658021,1776437445952,-3754.73,9.041e-05,2]
[420658023,1776437445962,-593.38,9.041e-05,2]
[420658024,1776437445971,-726.8,9.041e-05,2]
[420658025,1776437445980,-538.06,9.041e-05,2]
[420658026,1776437445990,-566.85,9.041e-05,2]
[420658027,1776437445999,-500.0,9.041e-05,2]
[420658028,1776437446010,-4939.8,9.041e-05,2]
[420658030,1776437446019,-3462.88,9.041e-05,2]
[420658032,1776437446028,-1446.18,9.041e-05,2]
[420658033,1776437446037,-713.44,9.041e-05,2]
[420658034,1776437446046,-4528.66,9.041e-05,2]
[420658035,1776437446055,-723.31,9.041e-05,2]
[420658036,1776437446066,-500.0,9.041e-05,2]
[420658038,1776437446075,-2613.51,9.041e-05,2]
[420658039,1776437446084,-504.39991338,9.041e-05,2]
[420658040,1776437446093,-500.0,9.041e-05,2]
[420658041,1776437446106,-500.0,9.041e-05,2]
[420658042,1776437446117,-3404.94,9.041e-05,2]
[420658043,1776437446128,-7444.33,9.041e-05,2]
[420658044,1776437446138,-628.83,9.041e-05,2]
[420658045,1776437446147,-1688.16,9.041e-05,2]
[420658046,1776437446156,-800.75,9.041e-05,2]
[420658047,1776437446164,-2658.5,9.041e-05,2]
[420658048,1776437446174,-38000.0,9.041e-05,2]
[420658050,1776437446184,-419.71869656,9.041e-05,2]
[420658051,1776437446194,-500.0,9.041e-05,2]
[420658052,1776437446203,-931.2,9.041e-05,2]
[420658053,1776437446214,-1910.09,9.041e-05,2]
[420658054,1776437446226,-781.85,9.041e-05,2]
[420658055,1776437446236,-2313.23,9.041e-05,2]
[420658056,1776437446247,-2748.1,9.041e-05,2]
[420658057,1776437446257,-745.48,9.041e-05,2]
[420658058,1776437446267,-500.0,9.041e-05,2]
[420658059,1776437446279,-4218.51,9.041e-05,2]
[420658060,1776437446290,-509.67,9.041e-05,2]
[420658061,1776437446299,-500.0,9.041e-05,2]
[420658062,1776437446309,-4061.92,9.041e-05,2]
[420658063,1776437446320,-2381.15,9.041e-05,2]
[420658064,1776437446329,-691.8,9.041e-05,2]
[420658065,1776437446339,-500.0,9.041e-05,2]
[420658066,1776437446349,-500.0,9.041e-05,2]
[420658067,1776437446359,-675.04,9.041e-05,2]
[420658068,1776437446368,-565.15,9.041e-05,2]
[420658069,1776437446378,-500.0,9.041e-05,2]
[420658070,1776437446388,-7701.99,9.041e-05,2]
[420658071,1776437446398,-500.0,9.041e-05,2]
[420658072,1776437446407,-500.0,9.041e-05,2]
[420658073,1776437446418,-815.78,9.041e-05,2]
[420658074,1776437446428,-568.90942685,9.041e-05,2]
[420658075,1776437446437,-1301.09,9.041e-05,2]
[420658076,1776437446447,-4306.99,9.041e-05,2]
[420658077,1776437446457,-500.0,9.041e-05,2]
[420658078,1776437446466,-500.0,9.041e-05,2]
[420658079,1776437446475,-500.0,9.041e-05,2]
[420658080,1776437446485,-25740.16,9.041e-05,2]
[420658081,1776437446494,-500.0,9.041e-05,2]
[420658082,1776437446505,-500.0,9.041e-05,2]
[420658083,1776437446652,-1070.79,9.041e-05,2]
[420658084,1776437446664,-1464.13,9.041e-05,2]
[420658085,1776437446674,-500.0,9.041e-05,2]
[420658086,1776437446683,-5547.26,9.041e-05,2]
[420658087,1776437446693,-1329.08,9.041e-05,2]
[420658088,1776437446702,-3006.38,9.041e-05,2]
[420658089,1776437446712,-500.0,9.041e-05,2]
[420658090,1776437446721,-3228.24,9.041e-05,2]
[420658091,1776437446730,-500.0,9.041e-05,2]
[420658092,1776437446739,-13016.44,9.041e-05,2]
[420658093,1776437446748,-374.71329392,9.041e-05,2]
[420658094,1776437446759,-2167.21,9.041e-05,2]
[420658095,1776437446769,-2673.8,9.041e-05,2]
[420658096,1776437446779,-161.43728406,9.041e-05,2]
[420658097,1776437446789,-500.0,9.041e-05,2]
[420658098,1776437446799,-5957.22,9.041e-05,2]
[420658099,1776437446808,-753.9,9.041e-05,2]
[420658100,1776437446818,-1115.96,9.041e-05,2]
[420658102,1776437446828,-4742.33,9.041e-05,2]
[420658104,1776437446838,-7327.37,9.041e-05,2]
[420658106,1776437446847,-560.74,9.041e-05,2]
[420658107,1776437446856,-500.0,9.041e-05,2]
[420658108,1776437446866,-500.0,9.041e-05,2]
[420658109,1776437446875,-1993.69784352,9.1e-05,2]
[420658110,1776437446885,-300.0,9.1e-05,2]
[420658111,1776437446894,-2258.0,9.113e-05,2]
[420658112,1776437446903,-344.55345061,9.12e-05,2]
[420658113,1776437446913,-10000.0,9.123e-05,2]
[420658114,1776437446923,-1504.8158894,9.126e-05,2]
[420658115,1776437446932,-2000.0,9.126e-05,2]
[420658116,1776437446941,-2000.0,9.126e-05,2]
[420658117,1776437446950,-2000.0,9.126e-05,2]
[420658118,1776437446960,-2000.0,9.126e-05,2]
[420658119,1776437446970,-1446.97932212,9.127e-05,2]
[420658120,1776437446979,-181.08010149,9.144e-05,2]
[420658121,1776437446989,-642.76037782,9.144e-05,2]
[420658122,1776437446998,-151.0,9.144e-05,2]
[420658123,1776437447008,-599.60298507,9.144e-05,2]
[420658124,1776437447018,-1500.0,9.157e-05,2]
[420658125,1776437447027,-1508.13493713,9.157e-05,2]
[420658126,1776437447037,-1500.0,9.157e-05,2]
[420658127,1776437447046,-1500.0,9.157e-05,2]
[420658128,1776437447056,-160.0,9.158e-05,3]
[420658129,1776437447065,-160.0,9.158e-05,5]
[420658130,1776437447075,-160.0,9.158e-05,5]
[420658131,1776437447085,-160.0,9.158e-05,3]
[420658133,1776437447096,-160.0,9.158e-05,5]
[420658135,1776437447106,-1993.69784352,9.2e-05,2]
[420658136,1776437447115,-1000.0,9.247e-05,2]
[420658137,1776437447124,-492.0,9.247e-05,2]
[420658138,1776437447133,-724.0,9.266e-05,2]
[420658139,1776437447143,-358.0,9.266e-05,2]
[420658140,1776437447153,-775.0,9.266e-05,2]
[420658141,1776437447163,-1434.0,9.266e-05,2]
[420658142,1776437447174,-853.0,9.266e-05,2]
[420658143,1776437447183,-2637.80408508,9.3e-05,2]
[420658144,1776437447191,-4392.88818947,9.3e-05,2]
[420658145,1776437447201,-1993.69784352,9.3e-05,2]
[420658146,1776437447210,-500.0,9.315e-05,2]
[420658147,1776437447220,-500.0,9.315e-05,2]
[420658148,1776437447231,-500.0,9.315e-05,2]
[420658149,1776437447241,-1657.65,9.315e-05,2]
[420658150,1776437447251,-500.0,9.315e-05,2]
[420658151,1776437447261,-500.0,9.315e-05,2]
[420658152,1776437447272,-500.0,9.315e-05,2]
[420658153,1776437447281,-500.0,9.315e-05,2]
[420658154,1776437447291,-787.39,9.315e-05,2]
[420658155,1776437447300,-500.0,9.315e-05,2]
[420658156,1776437447310,-1390.2324,9.315e-05,2]
[420658157,1776437447319,-500.0,9.315e-05,2]
[420658158,1776437447328,-568.58,9.315e-05,2]
[420658159,1776437447338,-500.0,9.315e-05,2]
[420658160,1776437447348,-962.76,9.315e-05,2]
[420658161,1776437447357,-500.0,9.315e-05,2]
[420658162,1776437447366,-2465.1,9.315e-05,2]
[420658163,1776437447376,-588.64,9.315e-05,2]
[420658164,1776437447384,-500.0,9.315e-05,2]
[420658165,1776437447394,-722.44,9.315e-05,2]
[420658166,1776437447403,-500.0,9.315e-05,2]
[420658167,1776437447412,-693.06,9.315e-05,2]
[420658168,1776437447422,-500.0,9.315e-05,2]
[420658169,1776437447431,-500.0,9.315e-05,2]
[420658170,1776437447440,-1640.61,9.315e-05,2]
[420658171,1776437447449,-547.37,9.315e-05,2]
[420658172,1776437447459,-500.0,9.315e-05,2]
[420658173,1776437447468,-1747.68,9.315e-05,2]
[420658174,1776437447478,-500.0,9.315e-05,2]
[420658175,1776437447487,-1438.78,9.315e-05,2]
[420658176,1776437447496,-502.7,9.315e-05,2]
[420658177,1776437447505,-500.0,9.315e-05,2]
[420658178,1776437447514,-500.0,9.315e-05,2]
[420658179,1776437447523,-500.0,9.315e-05,2]
[420658180,1776437447533,-537.22,9.315e-05,2]
[420658181,1776437447541,-2990.34,9.315e-05,2]
[420658183,1776437447551,-3754.73,9.315e-05,2]
[420658184,1776437447560,-593.38,9.315e-05,2]
[420658185,1776437447569,-726.8,9.315e-05,2]
[420658186,1776437447578,-538.06,9.315e-05,2]
[420658187,1776437447587,-566.85,9.315e-05,2]
[420658188,1776437447596,-500.0,9.315e-05,2]
[420658189,1776437447605,-4939.8,9.315e-05,2]
[420658190,1776437447614,-3462.88,9.315e-05,2]
[420658191,1776437447624,-1446.18,9.315e-05,2]
[420658192,1776437447634,-713.44,9.315e-05,2]
[420658193,1776437447644,-4528.66,9.315e-05,2]
[420658194,1776437447653,-723.31,9.315e-05,2]
[420658195,1776437447663,-500.0,9.315e-05,2]
[420658196,1776437447673,-2613.51,9.315e-05,2]
[420658197,1776437447682,-500.0,9.315e-05,2]
[420658198,1776437447696,-500.0,9.315e-05,2]
[420658199,1776437447706,-3404.94,9.315e-05,2]
[420658200,1776437447715,-7444.33,9.315e-05,2]
[420658201,1776437447726,-628.83,9.315e-05,2]
[420658202,1776437447736,-1688.16,9.315e-05,2]
[420658203,1776437447746,-800.75,9.315e-05,2]
[420658204,1776437447756,-2658.5,9.315e-05,2]
[420658205,1776437447766,-500.0,9.315e-05,2]
[420658206,1776437447776,-931.2,9.315e-05,2]
[420658207,1776437447786,-1910.09,9.315e-05,2]
[420658208,1776437447795,-781.85,9.315e-05,2]
[420658209,1776437447806,-2313.23,9.315e-05,2]
[420658210,1776437447815,-2748.1,9.315e-05,2]
[420658211,1776437447825,-745.48,9.315e-05,2]
[420658212,1776437447834,-500.0,9.315e-05,2]
[420658213,1776437447843,-4218.51,9.315e-05,2]
[420658214,1776437447853,-509.67,9.315e-05,2]
[420658215,1776437447863,-500.0,9.315e-05,2]
[420658216,1776437447872,-4061.92,9.315e-05,2]
[420658217,1776437447882,-2381.15,9.315e-05,2]
[420658218,1776437447891,-691.8,9.315e-05,2]
[420658219,1776437447900,-500.0,9.315e-05,2]
[420658220,1776437447913,-500.0,9.315e-05,2]
[420658221,1776437447923,-675.04,9.315e-05,2]
[420658222,1776437447931,-565.15,9.315e-05,2]
[420658223,1776437447941,-500.0,9.315e-05,2]
[420658224,1776437447950,-7701.99,9.315e-05,2]
[420658225,1776437447959,-500.0,9.315e-05,2]
[420658226,1776437447967,-500.0,9.315e-05,2]
[420658227,1776437447977,-815.78,9.315e-05,2]
[420658228,1776437447986,-1301.09,9.315e-05,2]
[420658229,1776437447996,-4306.99,9.315e-05,2]
[420658230,1776437448005,-500.0,9.315e-05,2]
[420658231,1776437448014,-500.0,9.315e-05,2]
[420658232,1776437448023,-500.0,9.315e-05,2]
[420658233,1776437448032,-25740.16,9.315e-05,2]
[420658234,1776437448041,-500.0,9.315e-05,2]
[420658235,1776437448051,-500.0,9.315e-05,2]
[420658236,1776437448061,-1070.79,9.315e-05,2]
[420658237,1776437448070,-1464.13,9.315e-05,2]
[420658238,1776437448079,-500.0,9.315e-05,2]
[420658239,1776437448088,-5547.26,9.315e-05,2]
[420658240,1776437448098,-1329.08,9.315e-05,2]
[420658241,1776437448107,-3006.38,9.315e-05,2]
[420658242,1776437448117,-500.0,9.315e-05,2]
[420658243,1776437448126,-3228.24,9.315e-05,2]
[420658244,1776437448135,-500.0,9.315e-05,2]
[420658245,1776437448146,-13016.44,9.315e-05,2]
[420658246,1776437448155,-2167.21,9.315e-05,2]
[420658247,1776437448165,-2673.8,9.315e-05,2]
[420658248,1776437448175,-500.0,9.315e-05,2]
[420658249,1776437448185,-5957.22,9.315e-05,2]
[420658250,1776437448194,-753.9,9.315e-05,2]
[420658251,1776437448204,-1115.96,9.315e-05,2]
[420658252,1776437448213,-4742.33,9.315e-05,2]
[420658253,1776437448223,-7327.37,9.315e-05,2]
[420658254,1776437448232,-560.74,9.315e-05,2]
[420658255,1776437448241,-500.0,9.315e-05,2]
[420658256,1776437448251,-500.0,9.315e-05,2]
[420658257,1776437448260,-1993.69784352,9.4e-05,2]
[420658258,1776437448269,-3255.70347477,9.407e-05,2]
[420658259,1776437448278,-2487.15318209,9.455e-05,2]